[Event "Titled Tuesday Blitz July 4 Early 2023"]
[White "Filgueira, Hernan"]
[Black "Schut, Han"]
[WhiteFideId "101770"]
[BlackFideId "1005561"]
[WhiteElo "2606"]
[BlackElo "2298"]
[Result "1-0"]
[Round "4"]
[TimeControl "180+2"]
[Date "2023.07.04"]
[WhiteClock "0:00:08"]
[BlackClock "0:00:00"]
[Board "104"]

1. e4 {[%clk 0:02:58]}  c5 {[%clk 0:02:59]} 2. Nf3 {[%clk 0:02:58]}  d6 {[%clk 0:02:59]} 3. Nc3 {[%clk 0:02:58]}  Nf6 {[%clk 0:02:59]} 4. d4 {[%clk 0:02:58]}  cxd4 {[%clk 0:03:00]} 5. Nxd4 {[%clk 0:02:58]}  a6 {[%clk 0:03:00]} 6. Be2 {[%clk 0:02:57]}  e5 {[%clk 0:03:00]} 7. Nb3 {[%clk 0:02:58]}  Be7 {[%clk 0:03:00]} 8. Bg5 {[%clk 0:02:57]}  Be6 {[%clk 0:03:00]} 9. Qd3 {[%clk 0:02:56]}  Nbd7 {[%clk 0:02:59]} 10. O-O {[%clk 0:02:56]}  Rc8 {[%clk 0:02:58]} 11. a4 {[%clk 0:02:55]}  Qc7 {[%clk 0:02:58]} 12. a5 {[%clk 0:02:54]}  Qc6 {[%clk 0:02:58]} 13. Bf3 {[%clk 0:02:52]}  Bc4 {[%clk 0:02:48]} 14. Qd2 {[%clk 0:02:52]}  Bxf1 {[%clk 0:02:45]} 15. Rxf1 {[%clk 0:02:52]}  h6 {[%clk 0:02:43]} 16. Be3 {[%clk 0:02:51]}  Nc5 {[%clk 0:02:25]} 17. Nxc5 {[%clk 0:02:40]}  dxc5 {[%clk 0:02:26]} 18. Nd5 {[%clk 0:02:41]}  Nxd5 {[%clk 0:02:16]} 19. exd5 {[%clk 0:02:40]}  Qd6 {[%clk 0:02:15]} 20. c4 {[%clk 0:02:39]}  f5 {[%clk 0:02:13]} 21. Qc2 {[%clk 0:02:36]}  O-O {[%clk 0:02:03]} 22. g3 {[%clk 0:02:28]}  Qf6 {[%clk 0:01:39]} 23. Bd2 {[%clk 0:02:20]}  Bd6 {[%clk 0:01:38]} 24. Bc3 {[%clk 0:02:17]}  Qg6 {[%clk 0:01:21]} 25. Bg2 {[%clk 0:02:15]}  Rce8 {[%clk 0:01:04]} 26. Rb1 {[%clk 0:01:47]}  e4 {[%clk 0:00:45]} 27. b4 {[%clk 0:01:45]}  f4 {[%clk 0:00:42]} 28. b5 {[%clk 0:01:43]}  f3 {[%clk 0:00:38]} 29. Bf1 {[%clk 0:01:40]}  Qg5 {[%clk 0:00:30]} 30. Bd2 {[%clk 0:01:36]}  Bf4 {[%clk 0:00:24]} 31. Bxf4 {[%clk 0:00:59]}  Rxf4 {[%clk 0:00:25]} 32. Re1 {[%clk 0:00:59]}  e3 {[%clk 0:00:20]} 33. Rxe3 {[%clk 0:00:58]}  Rxe3 {[%clk 0:00:20]} 34. fxe3 {[%clk 0:00:58]}  f2+ {[%clk 0:00:21]} 35. Kg2 {[%clk 0:00:57]}  Rf7 {[%clk 0:00:16]} 36. bxa6 {[%clk 0:00:53]}  bxa6 {[%clk 0:00:16]} 37. Qe4 {[%clk 0:00:53]}  Re7 {[%clk 0:00:14]} 38. Qb1 {[%clk 0:00:39]}  Qf6 {[%clk 0:00:11]} 39. Qb8+ {[%clk 0:00:32]}  Kh7 {[%clk 0:00:11]} 40. Bd3+ {[%clk 0:00:29]}  g6 {[%clk 0:00:11]} 41. Qf4 {[%clk 0:00:27]}  Qc3 {[%clk 0:00:06]} 42. Qf8 {[%clk 0:00:22]}  Qxd3 {[%clk 0:00:04]} 43. Qxe7+ {[%clk 0:00:22]}  Kg8 {[%clk 0:00:04]} 44. Qe8+ {[%clk 0:00:20]}  Kg7 {[%clk 0:00:04]} 45. Qe5+ {[%clk 0:00:19]}  Kg8 {[%clk 0:00:04]} 46. Qf4 {[%clk 0:00:19]}  f1=Q+ {[%clk 0:00:03]} 47. Qxf1 {[%clk 0:00:19]}  Qxe3 {[%clk 0:00:04]} 48. Qf3 {[%clk 0:00:15]}  Qd2+ {[%clk 0:00:03]} 49. Kh3 {[%clk 0:00:16]}  Qc1 {[%clk 0:00:03]} 50. d6 {[%clk 0:00:15]}  Qxc4 {[%clk 0:00:03]} 51. Qf6 {[%clk 0:00:13]}  h5 {[%clk 0:00:02]} 52. Qxg6+ {[%clk 0:00:12]}  Kf8 {[%clk 0:00:03]} 53. Qf6+ {[%clk 0:00:11]}  Kg8 {[%clk 0:00:03]} 54. d7 {[%clk 0:00:11]}  Qg4+ {[%clk 0:00:03]} 55. Kg2 {[%clk 0:00:11]}  Qe2+ {[%clk 0:00:03]} 56. Qf2 {[%clk 0:00:11]}  Qd3 {[%clk 0:00:04]} 57. Qxc5 {[%clk 0:00:08]}  Qxd7 {[%clk 0:00:03]} 58. Qxh5 {[%clk 0:00:08]}  Qd2+ {[%clk 0:00:02]} 59. Kh3 {[%clk 0:00:09]}  Qxa5 {[%clk 0:00:00]} 60. Qxa5 {[%clk 0:00:08]} 1-0


[Site "https://www.chess.com"]

[Event "Titled Tuesday Blitz July 4 Early 2023"]
[White "Gogolev, Artem"]
[Black "Matamoros Franco, Carlos S."]
[WhiteFideId "4116615"]
[BlackFideId "3600017"]
[WhiteElo "2517"]
[BlackElo "2657"]
[Result "0-1"]
[Round "4"]
[TimeControl "180+2"]
[Date "2023.07.04"]
[WhiteClock "0:00:03"]
[BlackClock "0:00:05"]
[Board "110"]

1. d4 {[%clk 0:02:57]}  Nf6 {[%clk 0:02:58]} 2. c4 {[%clk 0:02:56]}  c5 {[%clk 0:02:57]} 3. d5 {[%clk 0:02:54]}  g6 {[%clk 0:02:58]} 4. Nc3 {[%clk 0:02:46]}  Bg7 {[%clk 0:02:57]} 5. e4 {[%clk 0:02:43]}  d6 {[%clk 0:02:57]} 6. h3 {[%clk 0:02:21]}  O-O {[%clk 0:02:57]} 7. Nf3 {[%clk 0:02:21]}  e6 {[%clk 0:02:56]} 8. Bd3 {[%clk 0:02:19]}  exd5 {[%clk 0:02:56]} 9. exd5 {[%clk 0:02:20]}  Re8+ {[%clk 0:02:56]} 10. Be3 {[%clk 0:02:19]}  Rxe3+ {[%clk 0:02:55]} 11. fxe3 {[%clk 0:02:18]}  Qe7 {[%clk 0:02:55]} 12. O-O {[%clk 0:02:16]}  Nbd7 {[%clk 0:02:49]} 13. Rf2 {[%clk 0:02:09]}  b6 {[%clk 0:02:46]} 14. Qd2 {[%clk 0:02:09]}  Ba6 {[%clk 0:02:46]} 15. Kh1 {[%clk 0:01:55]}  Ne5 {[%clk 0:02:37]} 16. Nxe5 {[%clk 0:01:51]}  Qxe5 {[%clk 0:02:37]} 17. Raf1 {[%clk 0:01:46]}  Rf8 {[%clk 0:02:37]} 18. Rf3 {[%clk 0:01:33]}  Qe7 {[%clk 0:02:30]} 19. R3f2 {[%clk 0:01:19]}  Nd7 {[%clk 0:02:14]} 20. Ne4 {[%clk 0:01:16]}  f5 {[%clk 0:02:06]} 21. Nc3 {[%clk 0:01:07]}  Bh6 {[%clk 0:01:57]} 22. Ne2 {[%clk 0:01:01]}  Bxe3 {[%clk 0:01:51]} 23. Qd1 {[%clk 0:01:01]}  Bxf2 {[%clk 0:01:51]} 24. Rxf2 {[%clk 0:01:02]}  Ne5 {[%clk 0:01:27]} 25. Nf4 {[%clk 0:01:00]}  Bc8 {[%clk 0:01:22]} 26. Bf1 {[%clk 0:00:49]}  g5 {[%clk 0:01:12]} 27. Nd3 {[%clk 0:00:44]}  Qf6 {[%clk 0:00:28]} 28. Nxe5 {[%clk 0:00:38]}  Qxe5 {[%clk 0:00:27]} 29. Re2 {[%clk 0:00:38]}  Qf6 {[%clk 0:00:26]} 30. Qe1 {[%clk 0:00:24]}  f4 {[%clk 0:00:26]} 31. Re7 {[%clk 0:00:24]}  f3 {[%clk 0:00:20]} 32. gxf3 {[%clk 0:00:22]}  Qxf3+ {[%clk 0:00:19]} 33. Bg2 {[%clk 0:00:23]}  Qf6 {[%clk 0:00:18]} 34. Rxa7 {[%clk 0:00:22]}  Bf5 {[%clk 0:00:13]} 35. Qe7 {[%clk 0:00:18]}  Qxe7 {[%clk 0:00:08]} 36. Rxe7 {[%clk 0:00:19]}  Rf7 {[%clk 0:00:08]} 37. Re8+ {[%clk 0:00:19]}  Kg7 {[%clk 0:00:08]} 38. Rb8 {[%clk 0:00:19]}  Kf6 {[%clk 0:00:06]} 39. Rxb6 {[%clk 0:00:19]}  Ke5 {[%clk 0:00:07]} 40. a4 {[%clk 0:00:20]}  Bd3 {[%clk 0:00:06]} 41. b3 {[%clk 0:00:15]}  Rf2 {[%clk 0:00:06]} 42. a5 {[%clk 0:00:14]}  Ra2 {[%clk 0:00:06]} 43. a6 {[%clk 0:00:14]}  Ra3 {[%clk 0:00:05]} 44. Kh2 {[%clk 0:00:13]}  Bc2 {[%clk 0:00:05]} 45. Kg3 {[%clk 0:00:14]}  Bxb3 {[%clk 0:00:05]} 46. Kg4 {[%clk 0:00:14]}  Bxc4 {[%clk 0:00:05]} 47. Kxg5 {[%clk 0:00:14]}  Rg3+ {[%clk 0:00:05]} 48. Kh6 {[%clk 0:00:10]}  Rxg2 {[%clk 0:00:06]} 49. a7 {[%clk 0:00:10]}  Bxd5 {[%clk 0:00:06]} 50. Ra6 {[%clk 0:00:10]}  Rg3 {[%clk 0:00:05]} 51. a8=Q {[%clk 0:00:04]}  Bxa8 {[%clk 0:00:04]} 52. Rxa8 {[%clk 0:00:05]}  Rxh3+ {[%clk 0:00:04]} 53. Kg5 {[%clk 0:00:06]}  c4 {[%clk 0:00:05]} 54. Re8+ {[%clk 0:00:06]}  Kd4 {[%clk 0:00:05]} 55. Kf4 {[%clk 0:00:07]}  c3 {[%clk 0:00:05]} 56. Re4+ {[%clk 0:00:07]}  Kd3 {[%clk 0:00:05]} 57. Re6 {[%clk 0:00:08]}  d5 {[%clk 0:00:04]} 58. Rd6 {[%clk 0:00:09]}  d4 {[%clk 0:00:05]} 59. Ke5 {[%clk 0:00:09]}  c2 {[%clk 0:00:05]} 60. Rxd4+ {[%clk 0:00:09]}  Kc3 {[%clk 0:00:05]} 61. Rh4 {[%clk 0:00:03]}  Rxh4 {[%clk 0:00:05]} 0-1


[Site "https://www.chess.com"]

[Event "Titled Tuesday Blitz July 4 Early 2023"]
[White "Kamalidenova, Meruert"]
[Black "Lehtosaari, Mauri"]
[WhiteFideId "13712802"]
[BlackFideId "501999"]
[WhiteElo "2633"]
[BlackElo "2514"]
[Result "1-0"]
[Round "4"]
[TimeControl "180+2"]
[Date "2023.07.04"]
[WhiteClock "0:00:27"]
[BlackClock "0:00:01"]
[Board "112"]

1. d4 {[%clk 0:03:00]}  d5 {[%clk 0:02:56]} 2. c4 {[%clk 0:03:00]}  c6 {[%clk 0:02:51]} 3. Nc3 {[%clk 0:02:58]}  Nf6 {[%clk 0:02:51]} 4. Nf3 {[%clk 0:02:57]}  dxc4 {[%clk 0:02:50]} 5. e4 {[%clk 0:02:51]}  b5 {[%clk 0:02:49]} 6. e5 {[%clk 0:02:46]}  Nd5 {[%clk 0:02:48]} 7. a4 {[%clk 0:02:46]}  e6 {[%clk 0:02:29]} 8. Ne4 {[%clk 0:02:37]}  h6 {[%clk 0:02:14]} 9. Be2 {[%clk 0:02:37]}  Bb7 {[%clk 0:02:03]} 10. O-O {[%clk 0:02:35]}  Be7 {[%clk 0:02:03]} 11. b3 {[%clk 0:02:36]}  cxb3 {[%clk 0:01:54]} 12. axb5 {[%clk 0:02:36]}  cxb5 {[%clk 0:01:52]} 13. Bxb5+ {[%clk 0:02:36]}  Bc6 {[%clk 0:01:50]} 14. Qxb3 {[%clk 0:02:33]}  O-O {[%clk 0:01:49]} 15. Bxc6 {[%clk 0:02:23]}  Nxc6 {[%clk 0:01:49]} 16. Ba3 {[%clk 0:02:24]}  Nf4 {[%clk 0:01:35]} 17. Bxe7 {[%clk 0:02:21]}  Nxe7 {[%clk 0:01:35]} 18. Rfe1 {[%clk 0:02:15]}  Ned5 {[%clk 0:01:30]} 19. Nd6 {[%clk 0:02:13]}  a5 {[%clk 0:01:21]} 20. g3 {[%clk 0:02:13]}  Nh3+ {[%clk 0:01:10]} 21. Kg2 {[%clk 0:02:13]}  Ng5 {[%clk 0:01:10]} 22. Nd2 {[%clk 0:02:12]}  f6 {[%clk 0:01:03]} 23. h4 {[%clk 0:02:07]}  Nh7 {[%clk 0:00:51]} 24. N2e4 {[%clk 0:02:05]}  fxe5 {[%clk 0:00:32]} 25. dxe5 {[%clk 0:02:06]}  Kh8 {[%clk 0:00:25]} 26. Red1 {[%clk 0:02:04]}  Qe7 {[%clk 0:00:24]} 27. Ra2 {[%clk 0:01:57]}  Rfb8 {[%clk 0:00:22]} 28. Qf3 {[%clk 0:01:53]}  Nf8 {[%clk 0:00:21]} 29. Rda1 {[%clk 0:01:47]}  Ng6 {[%clk 0:00:20]} 30. Nf7+ {[%clk 0:01:47]}  Kg8 {[%clk 0:00:19]} 31. Ned6 {[%clk 0:01:47]}  Rf8 {[%clk 0:00:12]} 32. Qe4 {[%clk 0:01:42]}  Rxf7 {[%clk 0:00:11]} 33. Qxg6 {[%clk 0:01:41]}  Rff8 {[%clk 0:00:08]} 34. Qe4 {[%clk 0:01:33]}  Nc3 {[%clk 0:00:07]} 35. Qc4 {[%clk 0:01:21]}  Nxa2 {[%clk 0:00:07]} 36. Rxa2 {[%clk 0:01:22]}  Kh8 {[%clk 0:00:06]} 37. Ne4 {[%clk 0:01:12]}  Qb7 {[%clk 0:00:05]} 38. Kh2 {[%clk 0:01:06]}  Qd5 {[%clk 0:00:05]} 39. Qe2 {[%clk 0:01:05]}  Qxe5 {[%clk 0:00:04]} 40. f4 {[%clk 0:00:57]}  Qd5 {[%clk 0:00:04]} 41. Nf2 {[%clk 0:00:55]}  a4 {[%clk 0:00:04]} 42. Ng4 {[%clk 0:00:55]}  a3 {[%clk 0:00:04]} 43. Ne5 {[%clk 0:00:55]}  Kg8 {[%clk 0:00:05]} 44. Rd2 {[%clk 0:00:52]}  Qb3 {[%clk 0:00:04]} 45. Qg4 {[%clk 0:00:47]}  Ra7 {[%clk 0:00:03]} 46. Rd3 {[%clk 0:00:36]}  Qb2+ {[%clk 0:00:03]} 47. Kh3 {[%clk 0:00:36]}  a2 {[%clk 0:00:04]} 48. Qxe6+ {[%clk 0:00:36]}  Kh8 {[%clk 0:00:04]} 49. Ng6+ {[%clk 0:00:35]}  Kh7 {[%clk 0:00:03]} 50. Nxf8+ {[%clk 0:00:36]}  Kh8 {[%clk 0:00:04]} 51. Rd8 {[%clk 0:00:28]}  Ra8 {[%clk 0:00:01]} 52. Rxa8 {[%clk 0:00:27]}  a1=Q {[%clk 0:00:01]} 53. Ng6+ {[%clk 0:00:26]}  Kh7 {[%clk 0:00:01]} 54. Rh8# {[%clk 0:00:27]} 1-0


[Site "https://www.chess.com"]

[Event "Titled Tuesday Blitz July 4 Early 2023"]
[White "Niekras, Dawid"]
[Black "Korkmaz, Necmettin"]
[WhiteFideId "1160451"]
[BlackFideId "6303285"]
[WhiteElo "2628"]
[BlackElo "2509"]
[Result "1/2-1/2"]
[Round "4"]
[TimeControl "180+2"]
[Date "2023.07.04"]
[WhiteClock "0:00:05"]
[BlackClock "0:00:27"]
[Board "113"]

1. e4 {[%clk 0:03:00]}  e6 {[%clk 0:02:38]} 2. d4 {[%clk 0:02:59]}  d5 {[%clk 0:02:38]} 3. e5 {[%clk 0:03:00]}  c5 {[%clk 0:02:38]} 4. c3 {[%clk 0:03:01]}  Nc6 {[%clk 0:02:38]} 5. Nf3 {[%clk 0:03:01]}  Qb6 {[%clk 0:02:39]} 6. Bd3 {[%clk 0:03:01]}  cxd4 {[%clk 0:02:34]} 7. O-O {[%clk 0:03:01]}  Bd7 {[%clk 0:02:33]} 8. Re1 {[%clk 0:03:01]}  Nge7 {[%clk 0:02:30]} 9. h4 {[%clk 0:03:01]}  Nf5 {[%clk 0:02:27]} 10. Bxf5 {[%clk 0:02:59]}  exf5 {[%clk 0:02:28]} 11. cxd4 {[%clk 0:02:59]}  Be6 {[%clk 0:02:27]} 12. Nc3 {[%clk 0:02:59]}  Be7 {[%clk 0:02:27]} 13. Re3 {[%clk 0:02:21]}  O-O {[%clk 0:02:15]} 14. Ne2 {[%clk 0:02:20]}  Rac8 {[%clk 0:02:12]} 15. a3 {[%clk 0:01:56]}  Na5 {[%clk 0:02:08]} 16. Ne1 {[%clk 0:01:53]}  Bxh4 {[%clk 0:02:02]} 17. Rh3 {[%clk 0:01:49]}  Be7 {[%clk 0:02:00]} 18. Nf4 {[%clk 0:01:42]}  h6 {[%clk 0:01:43]} 19. b4 {[%clk 0:01:29]}  Nc4 {[%clk 0:01:43]} 20. Nh5 {[%clk 0:01:27]}  f4 {[%clk 0:01:40]} 21. Rh1 {[%clk 0:01:10]}  g5 {[%clk 0:01:39]} 22. Nf6+ {[%clk 0:01:07]}  Bxf6 {[%clk 0:01:39]} 23. exf6 {[%clk 0:01:08]}  Bf5 {[%clk 0:01:16]} 24. Rxh6 {[%clk 0:01:06]}  Bg6 {[%clk 0:01:17]} 25. Qg4 {[%clk 0:00:31]}  Qxf6 {[%clk 0:01:15]} 26. Nf3 {[%clk 0:00:31]}  Qg7 {[%clk 0:01:06]} 27. Qxg5 {[%clk 0:00:29]}  Be4 {[%clk 0:01:03]} 28. Qxf4 {[%clk 0:00:20]}  Bxf3 {[%clk 0:01:02]} 29. Qxf3 {[%clk 0:00:21]}  Rc6 {[%clk 0:01:00]} 30. Rxc6 {[%clk 0:00:18]}  bxc6 {[%clk 0:01:00]} 31. Bf4 {[%clk 0:00:18]}  Re8 {[%clk 0:00:59]} 32. Rd1 {[%clk 0:00:16]}  Re4 {[%clk 0:00:59]} 33. Be3 {[%clk 0:00:08]}  Qg6 {[%clk 0:00:56]} 34. g3 {[%clk 0:00:07]}  Re6 {[%clk 0:00:54]} 35. Kg2 {[%clk 0:00:08]}  Rf6 {[%clk 0:00:54]} 36. Qe2 {[%clk 0:00:07]}  Qe4+ {[%clk 0:00:54]} 37. Kg1 {[%clk 0:00:02]}  Re6 {[%clk 0:00:54]} 38. Re1 {[%clk 0:00:02]}  Nxe3 {[%clk 0:00:47]} 39. Qxe3 {[%clk 0:00:03]}  Qg4 {[%clk 0:00:39]} 40. Qd2 {[%clk 0:00:02]}  Rxe1+ {[%clk 0:00:39]} 41. Qxe1 {[%clk 0:00:03]}  Qxd4 {[%clk 0:00:40]} 42. Qe8+ {[%clk 0:00:03]}  Kg7 {[%clk 0:00:40]} 43. Qxc6 {[%clk 0:00:04]}  Qe4 {[%clk 0:00:38]} 44. Qc3+ {[%clk 0:00:03]}  d4 {[%clk 0:00:38]} 45. Qb2 {[%clk 0:00:02]}  f6 {[%clk 0:00:37]} 46. Kf1 {[%clk 0:00:02]}  d3 {[%clk 0:00:37]} 47. f3 {[%clk 0:00:01]}  Qxf3+ {[%clk 0:00:35]} 48. Qf2 {[%clk 0:00:02]}  Qd1+ {[%clk 0:00:33]} 49. Kg2 {[%clk 0:00:02]}  d2 {[%clk 0:00:34]} 50. Qxa7+ {[%clk 0:00:02]}  Kg6 {[%clk 0:00:33]} 51. Qa6 {[%clk 0:00:02]}  Qe1 {[%clk 0:00:32]} 52. Qd3+ {[%clk 0:00:02]}  Kg5 {[%clk 0:00:32]} 53. Qd5+ {[%clk 0:00:02]}  Kg6 {[%clk 0:00:30]} 54. Qg8+ {[%clk 0:00:03]}  Kf5 {[%clk 0:00:30]} 55. Qd5+ {[%clk 0:00:03]}  Kg4 {[%clk 0:00:27]} 56. Qg8+ {[%clk 0:00:03]}  Kh5 {[%clk 0:00:26]} 57. Qh7+ {[%clk 0:00:03]}  Kg5 {[%clk 0:00:26]} 58. Qg8+ {[%clk 0:00:03]}  Kf5 {[%clk 0:00:27]} 59. Qd5+ {[%clk 0:00:04]}  Kg6 {[%clk 0:00:27]} 60. Qg8+ {[%clk 0:00:04]}  Kh6 {[%clk 0:00:27]} 61. Qh8+ {[%clk 0:00:04]}  Kg5 {[%clk 0:00:27]} 62. Qg8+ {[%clk 0:00:05]}  Kf5 {[%clk 0:00:27]} 1/2-1/2


[Site "https://www.chess.com"]

[Event "Titled Tuesday Blitz July 4 Early 2023"]
[White "Heinemann, Josefine"]
[Black "Subelj, Jan"]
[WhiteFideId "12900460"]
[BlackFideId "14618583"]
[WhiteElo "2457"]
[BlackElo "2609"]
[Result "1/2-1/2"]
[Round "4"]
[TimeControl "180+2"]
[Date "2023.07.04"]
[WhiteClock "0:00:19"]
[BlackClock "0:00:13"]
[Board "117"]

1. d4 {[%clk 0:02:58]}  d6 {[%clk 0:03:00]} 2. e4 {[%clk 0:02:56]}  Nf6 {[%clk 0:03:01]} 3. Nc3 {[%clk 0:02:54]}  e5 {[%clk 0:03:02]} 4. dxe5 {[%clk 0:02:54]}  dxe5 {[%clk 0:03:01]} 5. Qxd8+ {[%clk 0:02:55]}  Kxd8 {[%clk 0:03:01]} 6. Bc4 {[%clk 0:02:55]}  Ke8 {[%clk 0:02:58]} 7. f4 {[%clk 0:02:50]}  Bb4 {[%clk 0:02:48]} 8. Bd3 {[%clk 0:02:49]}  Nbd7 {[%clk 0:02:46]} 9. Nf3 {[%clk 0:02:48]}  exf4 {[%clk 0:02:40]} 10. Bxf4 {[%clk 0:02:47]}  c6 {[%clk 0:02:31]} 11. O-O-O {[%clk 0:02:46]}  Nc5 {[%clk 0:02:26]} 12. Rhe1 {[%clk 0:02:40]}  Be6 {[%clk 0:02:25]} 13. a3 {[%clk 0:02:38]}  Bxc3 {[%clk 0:02:24]} 14. bxc3 {[%clk 0:02:38]}  Rd8 {[%clk 0:02:02]} 15. Nd4 {[%clk 0:02:32]}  Na4 {[%clk 0:01:54]} 16. Nxe6 {[%clk 0:02:21]}  fxe6 {[%clk 0:01:55]} 17. Bd2 {[%clk 0:02:19]}  e5 {[%clk 0:01:50]} 18. Bc4 {[%clk 0:02:17]}  Nc5 {[%clk 0:01:49]} 19. Be3 {[%clk 0:02:09]}  Rxd1+ {[%clk 0:01:45]} 20. Rxd1 {[%clk 0:02:09]}  Nfxe4 {[%clk 0:01:40]} 21. Be2 {[%clk 0:02:08]}  Nxc3 {[%clk 0:01:36]} 22. Bh5+ {[%clk 0:02:00]}  g6 {[%clk 0:01:30]} 23. Re1 {[%clk 0:02:00]}  gxh5 {[%clk 0:01:12]} 24. Bxc5 {[%clk 0:02:00]}  Kf7 {[%clk 0:01:12]} 25. Rxe5 {[%clk 0:01:56]}  Re8 {[%clk 0:01:12]} 26. Rxe8 {[%clk 0:01:50]}  Kxe8 {[%clk 0:01:11]} 27. Bxa7 {[%clk 0:01:51]}  Kf7 {[%clk 0:01:09]} 28. Kd2 {[%clk 0:01:49]}  Nb5 {[%clk 0:01:09]} 29. Bc5 {[%clk 0:01:49]}  Ke6 {[%clk 0:01:09]} 30. c4 {[%clk 0:01:48]}  Nc7 {[%clk 0:01:08]} 31. Kd3 {[%clk 0:01:47]}  Kf5 {[%clk 0:01:08]} 32. Be3 {[%clk 0:01:42]}  Ne6 {[%clk 0:01:07]} 33. h3 {[%clk 0:01:41]}  h4 {[%clk 0:01:06]} 34. Bf2 {[%clk 0:01:31]}  Nf4+ {[%clk 0:01:04]} 35. Kd4 {[%clk 0:01:32]}  Nxg2 {[%clk 0:01:04]} 36. Kc5 {[%clk 0:01:32]}  Kf4 {[%clk 0:00:58]} 37. Kb6 {[%clk 0:01:31]}  Kf3 {[%clk 0:00:59]} 38. Bc5 {[%clk 0:01:30]}  Kg3 {[%clk 0:00:58]} 39. Kxb7 {[%clk 0:01:30]}  Kxh3 {[%clk 0:00:58]} 40. a4 {[%clk 0:01:31]}  Kg3 {[%clk 0:00:59]} 41. a5 {[%clk 0:01:31]}  h3 {[%clk 0:00:59]} 42. Bg1 {[%clk 0:01:25]}  Ne1 {[%clk 0:00:43]} 43. a6 {[%clk 0:01:23]}  Kg2 {[%clk 0:00:38]} 44. a7 {[%clk 0:01:18]}  Kxg1 {[%clk 0:00:37]} 45. a8=Q {[%clk 0:01:18]}  h2 {[%clk 0:00:37]} 46. Qa1 {[%clk 0:00:45]}  Kf2 {[%clk 0:00:19]} 47. Qd4+ {[%clk 0:00:44]}  Kf1 {[%clk 0:00:18]} 48. Qf4+ {[%clk 0:00:42]}  Kg1 {[%clk 0:00:17]} 49. Qe3+ {[%clk 0:00:38]}  Kf1 {[%clk 0:00:16]} 50. Qf4+ {[%clk 0:00:25]}  Kg1 {[%clk 0:00:15]} 51. Qd4+ {[%clk 0:00:25]}  Kf1 {[%clk 0:00:14]} 52. Qf6+ {[%clk 0:00:24]}  Kg1 {[%clk 0:00:13]} 53. Qg5+ {[%clk 0:00:20]}  Kf1 {[%clk 0:00:13]} 54. Qf4+ {[%clk 0:00:19]} 1/2-1/2


[Site "https://www.chess.com"]

[Event "Titled Tuesday Blitz July 4 Early 2023"]
[White "Itkis, Boris"]
[Black "cafu1950"]
[WhiteFideId "1209167"]
[WhiteElo "2437"]
[BlackElo "2604"]
[Result "1/2-1/2"]
[Round "4"]
[TimeControl "180+2"]
[Date "2023.07.04"]
[WhiteClock "0:00:10"]
[BlackClock "0:01:09"]
[Board "118"]

1. c4 {[%clk 0:03:00]}  Nf6 {[%clk 0:02:54]} 2. Nf3 {[%clk 0:03:01]}  g6 {[%clk 0:02:55]} 3. g3 {[%clk 0:03:01]}  Bg7 {[%clk 0:02:55]} 4. d4 {[%clk 0:03:02]}  O-O {[%clk 0:02:56]} 5. Bg2 {[%clk 0:03:03]}  d6 {[%clk 0:02:57]} 6. O-O {[%clk 0:03:03]}  Nbd7 {[%clk 0:02:58]} 7. d5 {[%clk 0:03:03]}  e5 {[%clk 0:02:58]} 8. dxe6 {[%clk 0:03:03]}  fxe6 {[%clk 0:02:59]} 9. Nc3 {[%clk 0:03:03]}  e5 {[%clk 0:03:00]} 10. Ng5 {[%clk 0:02:53]}  Qe7 {[%clk 0:02:50]} 11. h4 {[%clk 0:02:47]}  Nb6 {[%clk 0:02:50]} 12. b3 {[%clk 0:02:46]}  Kh8 {[%clk 0:02:49]} 13. a4 {[%clk 0:02:45]}  a5 {[%clk 0:02:49]} 14. Be3 {[%clk 0:02:43]}  h6 {[%clk 0:02:44]} 15. Bxb6 {[%clk 0:02:36]}  hxg5 {[%clk 0:02:44]} 16. hxg5 {[%clk 0:02:31]}  Ng4 {[%clk 0:02:44]} 17. f3 {[%clk 0:01:59]}  cxb6 {[%clk 0:02:41]} 18. fxg4 {[%clk 0:01:59]}  Bxg4 {[%clk 0:02:40]} 19. Ne4 {[%clk 0:01:54]}  Rxf1+ {[%clk 0:02:34]} 20. Qxf1 {[%clk 0:01:55]}  Bf5 {[%clk 0:02:34]} 21. Qc1 {[%clk 0:01:52]}  Rd8 {[%clk 0:02:13]} 22. Qe3 {[%clk 0:01:51]}  d5 {[%clk 0:02:11]} 23. cxd5 {[%clk 0:01:46]}  Rxd5 {[%clk 0:02:12]} 24. Nf6 {[%clk 0:01:44]}  Bxf6 {[%clk 0:02:01]} 25. gxf6 {[%clk 0:01:37]}  Qc5 {[%clk 0:01:59]} 26. Qxc5 {[%clk 0:01:26]}  Rxc5 {[%clk 0:02:00]} 27. Rd1 {[%clk 0:01:27]}  Be6 {[%clk 0:02:00]} 28. Be4 {[%clk 0:01:15]}  Kh7 {[%clk 0:01:47]} 29. Rd6 {[%clk 0:01:14]}  Bxb3 {[%clk 0:01:42]} 30. Rxb6 {[%clk 0:01:06]}  Bc2 {[%clk 0:01:41]} 31. Rxb7+ {[%clk 0:01:04]}  Kg8 {[%clk 0:01:38]} 32. Bxc2 {[%clk 0:00:48]}  Rxc2 {[%clk 0:01:39]} 33. Kf2 {[%clk 0:00:48]}  Rc4 {[%clk 0:01:34]} 34. Rg7+ {[%clk 0:00:45]}  Kf8 {[%clk 0:01:30]} 35. Rxg6 {[%clk 0:00:45]}  Kf7 {[%clk 0:01:30]} 36. Rh6 {[%clk 0:00:45]}  Rxa4 {[%clk 0:01:28]} 37. Kf3 {[%clk 0:00:45]}  Rb4 {[%clk 0:01:27]} 38. g4 {[%clk 0:00:45]}  Rf4+ {[%clk 0:01:25]} 39. Kg3 {[%clk 0:00:39]}  a4 {[%clk 0:01:22]} 40. g5 {[%clk 0:00:36]}  a3 {[%clk 0:01:22]} 41. Rh7+ {[%clk 0:00:37]}  Kg6 {[%clk 0:01:20]} 42. Rg7+ {[%clk 0:00:35]}  Kh5 {[%clk 0:01:20]} 43. Ra7 {[%clk 0:00:20]}  Kxg5 {[%clk 0:01:19]} 44. Rxa3 {[%clk 0:00:20]}  Rxf6 {[%clk 0:01:18]} 45. Ra5 {[%clk 0:00:20]}  Kf5 {[%clk 0:01:17]} 46. Kf3 {[%clk 0:00:20]}  Rh6 {[%clk 0:01:17]} 47. e4+ {[%clk 0:00:19]}  Kf6 {[%clk 0:01:16]} 48. Ra6+ {[%clk 0:00:19]}  Kg5 {[%clk 0:01:16]} 49. Rxh6 {[%clk 0:00:15]}  Kxh6 {[%clk 0:01:17]} 50. Kg4 {[%clk 0:00:06]}  Kg6 {[%clk 0:01:11]} 51. Kh4 {[%clk 0:00:06]}  Kf6 {[%clk 0:01:07]} 52. Kh5 {[%clk 0:00:06]}  Ke6 {[%clk 0:01:07]} 53. Kg6 {[%clk 0:00:06]}  Ke7 {[%clk 0:01:07]} 54. Kf5 {[%clk 0:00:05]}  Kf7 {[%clk 0:01:07]} 55. Kxe5 {[%clk 0:00:05]}  Ke7 {[%clk 0:01:07]} 56. Kd4 {[%clk 0:00:05]}  Kd6 {[%clk 0:01:07]} 57. Kd3 {[%clk 0:00:01]}  Ke5 {[%clk 0:01:06]} 58. Ke3 {[%clk 0:00:02]}  Ke6 {[%clk 0:01:07]} 59. Kf4 {[%clk 0:00:02]}  Kf6 {[%clk 0:01:07]} 60. e5+ {[%clk 0:00:03]}  Ke6 {[%clk 0:01:08]} 61. Ke4 {[%clk 0:00:04]}  Ke7 {[%clk 0:01:08]} 62. Kd5 {[%clk 0:00:05]}  Kd7 {[%clk 0:01:08]} 63. e6+ {[%clk 0:00:06]}  Ke7 {[%clk 0:01:09]} 64. Ke5 {[%clk 0:00:07]}  Ke8 {[%clk 0:01:09]} 65. Kd6 {[%clk 0:00:08]}  Kd8 {[%clk 0:01:10]} 66. Kd5 {[%clk 0:00:08]}  Ke7 {[%clk 0:01:09]} 67. Ke5 {[%clk 0:00:09]}  Ke8 {[%clk 0:01:09]} 68. Kd6 {[%clk 0:00:10]}  Kd8 {[%clk 0:01:09]} 69. Kd5 {[%clk 0:00:10]}  Ke7 {[%clk 0:01:09]} 1/2-1/2


[Site "https://www.chess.com"]